fUST/lending_fUST_20250928
["ID","MTS","AMOUNT","RATE_DAILY","PERIOD"]
[388048707,1758991853278,-151.0,0.00034298,7]
[388048708,1758991853287,-151.0,0.00034298,7]
[388048709,1758991853297,-151.0,0.00034298,7]
[388048710,1758991853307,-151.0,0.00034298,7]
[388048711,1758991853316,-151.0,0.00034298,7]
[388048712,1758991853326,-166.675861,0.00034298,7]
[388048713,1758991853335,-151.0,0.00034298,7]
[388048714,1758991853345,-151.0,0.00034298,7]
[388048715,1758991853354,-151.0,0.00034298,7]
[388048716,1758991853364,-151.0,0.00034298,7]
[388048717,1758991853373,-151.0,0.00034298,7]
[388048718,1758991853383,-151.0,0.00034298,7]
[388048719,1758991853392,-151.0,0.00034298,7]
[388048720,1758991853402,-168.0,0.00034353,2]
[388048721,1758991853412,-500.0,0.00034362,5]
[388048722,1758991853422,-500.0,0.00034362,5]
[388048723,1758991853432,-151.0,0.000344,20]
[388048724,1758991853441,-500.0,0.00034428,5]
[388048725,1758991853451,-500.0,0.00034428,2]
[388048726,1758991853461,-503.61595425,0.0003452,5]
[388048727,1758991853471,-500.0,0.0003452,5]
[388048728,1758991853481,-586.5092015,0.00034521,30]
[388048729,1758991853490,-1011.0,0.00034554,5]
[388048730,1758991853499,-592.60819334,0.00034555,5]
[388048731,1758991853509,-500.0,0.00034555,5]
[388048732,1758991853518,-500.40702557,0.00034555,5]
[388048733,1758991853528,-2500.0,0.00034569,5]
[388048734,1758991853538,-1534.8526082,0.00034569,5]
[388048735,1758991853547,-2500.0,0.00034569,5]
[388048736,1758991853557,-508.25160184,0.0003463,5]
[388048737,1758991853571,-2000.01482618,0.0003463,2]
[388048738,1758991853581,-812.85088604,0.0003468,5]
[388048739,1758991853591,-2000.0,0.0003468,5]
[388048740,1758991853602,-959.60097667,0.0003468,5]
[388048741,1758991853611,-2000.0,0.0003468,5]
[388048742,1758991853621,-2000.0,0.0003468,5]
[388048743,1758991853630,-698.762648,0.0003468,5]
[388048744,1758991853641,-195.59024746,0.0003468,5]
[388048745,1758991853651,-2000.0,0.0003468,5]
[388048746,1758991853660,-533.55829904,0.0003468,5]
[388048747,1758991853670,-386.67840394,0.00034723,2]
[388048748,1758991853680,-265.35467349,0.00034723,2]
[388048749,1758991853691,-151.0,0.000348,10]
[388048750,1758991853701,-2500.0,0.00034822,5]
[388048751,1758991853711,-1011.0,0.00034828,5]
[388048752,1758991853720,-5407.12645115,0.00034859,2]
[388048753,1758991853729,-1000.0,0.0003491,5]
[388048754,1758991853739,-1000.0,0.0003491,5]
[388048755,1758991853748,-500.0,0.00034976,2]
[388048756,1758991853757,-151.0,0.0003498,7]
[388048757,1758991853768,-151.0,0.0003498,7]
[388048758,1758991853777,-151.0,0.0003498,7]
[388048759,1758991853787,-244.403008,0.0003498,7]
[388048760,1758991853796,-151.0,0.0003498,7]
[388048761,1758991853806,-243.884638,0.0003498,7]
[388048762,1758991853814,-151.0,0.0003498,7]
[388048763,1758991853824,-151.0,0.0003498,7]
[388048764,1758991853833,-151.0,0.0003498,7]
[388048765,1758991853842,-151.0,0.0003498,7]
[388048766,1758991853852,-298.544007,0.0003498,7]
[388048767,1758991853862,-151.0,0.0003498,7]
[388048768,1758991853872,-151.0,0.0003498,7]
[388048769,1758991853881,-151.0,0.0003498,7]
[388048770,1758991853890,-209.470903,0.0003498,7]
[388048771,1758991853898,-151.0,0.0003498,7]
[388048772,1758991853907,-209.470903,0.0003498,7]
[388048773,1758991853915,-209.470903,0.0003498,7]
[388048774,1758991853924,-209.470907,0.0003498,7]
[388048775,1758991853933,-151.0,0.0003498,7]
[388048776,1758991853943,-151.0,0.0003498,7]
[388048777,1758991853952,-151.0,0.0003499,7]
[388048778,1758991853962,-151.0,0.0003499,7]
[388048779,1758991853972,-151.0,0.0003499,7]
[388048780,1758991853981,-151.0,0.0003499,7]
[388048781,1758991853991,-172.14,0.0003499,7]
[388048782,1758991854000,-151.0,0.0003499,7]
[388048783,1758991854010,-151.0,0.0003499,7]
[388048784,1758991854020,-151.0,0.0003499,7]
[388048785,1758991854030,-151.0,0.0003499,7]
[388048786,1758991854040,-151.0,0.0003499,7]
[388048787,1758991854050,-151.0,0.0003499,7]
[388048788,1758991854060,-151.0,0.0003499,7]
[388048789,1758991854070,-151.0,0.0003499,7]
[388048790,1758991854080,-151.0,0.0003499,7]
[388048791,1758991854090,-151.0,0.0003499,7]
[388048792,1758991854100,-151.0,0.0003499,7]
[388048793,1758991854110,-151.0,0.0003499,7]
[388048794,1758991854119,-151.0,0.0003499,7]
[388048795,1758991854129,-151.0,0.0003499,7]
[388048796,1758991854139,-151.0,0.0003499,7]
[388048797,1758991854148,-151.0,0.0003499,7]
[388048798,1758991854158,-151.0,0.0003499,7]
[388048799,1758991854167,-151.0,0.0003499,7]
[388048800,1758991854176,-151.0,0.0003499,7]
[388048801,1758991854185,-151.0,0.0003499,7]
[388048802,1758991854195,-151.0,0.0003499,7]
[388048803,1758991854205,-151.0,0.0003499,7]
[388048804,1758991854215,-275.649983,0.0003499,7]
[388048805,1758991854363,-151.0,0.0003499,7]
[388048806,1758991854384,-151.0,0.0003499,7]
[388048807,1758991854393,-151.0,0.0003499,7]
[388048808,1758991854403,-1000.0,0.00035,30]
[388048809,1758991854413,-1000.0,0.00035,30]
[388048810,1758991854423,-158.978155,0.00035,7]
[388048811,1758991854433,-151.0,0.00035,7]
[388048812,1758991854443,-151.0,0.00035,7]
[388048813,1758991854452,-151.0,0.00035,7]
[388048814,1758991854462,-181.033147,0.00035,7]
[388048815,1758991854472,-151.0,0.00035,7]
[388048816,1758991854482,-151.0,0.00035,7]
[388048817,1758991854491,-151.0,0.00035,7]
[388048818,1758991854501,-151.0,0.00035,7]
[388048819,1758991854510,-151.0,0.00035,7]
[388048820,1758991854520,-151.0,0.00035,7]
[388048821,1758991854530,-151.0,0.00035,7]
[388048822,1758991854540,-151.0,0.00035,7]
[388048823,1758991854549,-151.0,0.00035,7]
[388048824,1758991854558,-151.0,0.00035,7]
[388048825,1758991854567,-160.0,0.00035,30]
[388048826,1758991854576,-380342.35978,0.00035,2]
[388048827,1758991854585,-151.0,0.00035042,30]
[388048828,1758991854594,-219.49491043,0.00035068,5]
[388048829,1758991854603,-240.15,0.000351,2]
[388048830,1758991854613,-1011.0,0.00035102,5]
[388048831,1758991854622,-1000.0,0.00035102,5]
[388048832,1758991854631,-3000.0,0.00035117,5]
[388048833,1758991854640,-1500.0,0.00035117,5]
[388048834,1758991854649,-5000.0,0.0003519,4]
[388048835,1758991854658,-2305.42,0.000352,14]
[388048836,1758991854666,-2504.83976007,0.00035227,5]
[388048837,1758991854676,-2500.0,0.00035227,5]
[388048838,1758991854689,-1000.0,0.00035227,5]
[388048839,1758991854699,-1019.53822146,0.00035227,5]
[388048840,1758991854707,-233.76631357,0.00035238,2]
[388048841,1758991854716,-3000.0,0.0003537,5]
[388048842,1758991854724,-1011.0,0.00035376,5]
[388048843,1758991854732,-1396.00188516,0.00035458,5]
[388048844,1758991854742,-1500.0,0.00035458,5]
[388048845,1758991854751,-5407.12645115,0.00035516,2]
[388048846,1758991854760,-27601.71650613,0.00035516,2]
[388048847,1758991854769,-500.338,0.00035555,7]
[388048848,1758991854778,-417.998,0.00035562,2]
[388048849,1758991854787,-2161.0,0.00035562,2]
[388048850,1758991854798,-635.0,0.00035562,2]
[388048851,1758991854807,-150.0,0.00035562,2]
[388048852,1758991854816,-410.0,0.00035562,2]
[388048853,1758991854825,-150.0,0.00035562,2]
[388048854,1758991854835,-250.0,0.000356,14]
[388048855,1758991854844,-250.0,0.000356,14]
[388048856,1758991854853,-4571.04285028,0.00035616,3]
[388048857,1758991854863,-601.12140561,0.00035616,9]
[388048858,1758991854872,-480.0,0.00035616,9]
[388048859,1758991854881,-480.0,0.00035616,9]
[388048860,1758991854891,-480.0,0.00035616,9]
[388048861,1758991854900,-480.0,0.00035616,9]
[388048862,1758991854910,-480.0,0.00035616,9]
[388048863,1758991854919,-480.0,0.00035616,9]
[388048864,1758991854929,-480.0,0.00035616,9]
[388048865,1758991854939,-480.0,0.00035616,9]
[388048866,1758991854948,-480.0,0.00035616,9]
[388048867,1758991854958,-480.0,0.00035616,9]
[388048868,1758991854968,-705.8,0.00035616,9]
[388048869,1758991854978,-480.0,0.00035616,9]
[388048870,1758991854988,-480.0,0.00035616,9]
[388048871,1758991855008,-480.0,0.00035616,9]
[388048872,1758991855026,-500.0,0.00035616,9]
[388048873,1758991855037,-500.0,0.00035616,9]
[388048874,1758991855047,-500.0,0.00035616,9]
[388048875,1758991855059,-500.0,0.00035616,9]
[388048876,1758991855068,-500.0,0.00035616,9]
[388048877,1758991855078,-500.0,0.00035616,9]
[388048878,1758991855088,-500.0,0.00035616,9]
[388048879,1758991855097,-500.0,0.00035616,9]
[388048880,1758991855107,-500.0,0.00035616,9]
[388048881,1758991855116,-500.0,0.00035616,9]
[388048882,1758991855130,-500.0,0.00035616,9]
[388048883,1758991855139,-500.0,0.00035616,9]
[388048884,1758991855150,-550.66502579,0.00035616,9]
[388048885,1758991855160,-480.0,0.00035616,9]
[388048886,1758991855169,-480.0,0.00035616,9]
[388048887,1758991855179,-480.0,0.00035616,9]
[388048888,1758991855188,-1235.07,0.00035616,9]
[388048889,1758991855198,-480.0,0.00035616,9]
[388048890,1758991855208,-480.0,0.00035616,9]
[388048891,1758991855217,-480.0,0.00035616,9]
[388048892,1758991855227,-487.46694073,0.00035616,9]
[388048893,1758991855237,-480.0,0.00035616,9]
[388048894,1758991855247,-480.0,0.00035616,9]
[388048895,1758991855257,-480.0,0.00035616,9]
[388048896,1758991855266,-480.0,0.00035616,9]
[388048897,1758991855275,-480.0,0.00035616,9]
[388048898,1758991855285,-480.0,0.00035616,9]
[388048899,1758991855295,-480.0,0.00035616,9]
[388048900,1758991855306,-480.0,0.00035616,9]
[388048901,1758991855316,-480.0,0.00035616,9]
[388048902,1758991855326,-480.0,0.00035616,9]
[388048903,1758991855336,-480.0,0.00035616,9]
[388048904,1758991855345,-480.0,0.00035616,9]
[388048905,1758991855354,-480.0,0.00035616,9]
[388048906,1758991855363,-480.0,0.00035616,9]
[388048907,1758991855373,-481.94642854,0.00035616,9]
[388048908,1758991855382,-480.0,0.00035616,9]
[388048909,1758991855392,-480.0,0.00035616,9]
[388048910,1758991855401,-480.0,0.00035616,9]
[388048911,1758991855411,-461.56508481,0.00035616,9]
[388048912,1758991855420,-448.78354047,0.00035616,9]
[388048913,1758991855430,-481.78275944,0.00035616,9]
[388048914,1758991855440,-480.0,0.00035616,9]
[388048915,1758991855450,-807.11,0.00035616,9]
[388048916,1758991855460,-153.04720755,0.00035616,9]
[388048917,1758991855469,-529.58043624,0.00035616,9]
[388048918,1758991855478,-480.0,0.00035616,9]
[388048919,1758991855487,-480.0,0.00035616,9]
[388048920,1758991855497,-480.0,0.00035616,9]
[388048921,1758991855506,-480.0,0.00035616,9]
[388048922,1758991855515,-480.0,0.00035616,9]
[388048923,1758991855525,-482.38,0.00035616,9]
[388048924,1758991855535,-480.0,0.00035616,9]
[388048925,1758991855545,-480.0,0.00035616,9]
[388048926,1758991855554,-480.0,0.00035616,9]
[388048927,1758991855566,-480.0,0.00035616,9]
[388048928,1758991855576,-480.0,0.00035616,9]
[388048929,1758991855586,-480.0,0.00035616,9]
[388048930,1758991855595,-480.0,0.00035616,9]
[388048931,1758991855603,-480.0,0.00035616,9]
[388048932,1758991855612,-500.0,0.00035616,2]
[388048933,1758991855621,-500.0,0.00035616,2]
[388048934,1758991855631,-500.0,0.00035616,2]
[388048935,1758991855640,-500.0,0.00035616,2]
[388048936,1758991855650,-500.0,0.00035616,2]
[388048937,1758991855659,-169.60551265,0.00035616,2]
[388048938,1758991855668,-480.0,0.00035616,9]
[388048939,1758991855678,-481.72443208,0.00035616,9]
[388048940,1758991855687,-480.0,0.00035616,9]
[388048941,1758991855696,-480.0,0.00035616,9]
[388048942,1758991855706,-480.0,0.00035616,9]
[388048943,1758991855715,-480.0,0.00035616,9]
[388048944,1758991855724,-623.29831451,0.00035616,9]
[388048945,1758991855733,-787.1,0.00035616,9]
[388048946,1758991855742,-480.0,0.00035616,9]
[388048947,1758991855752,-480.0,0.00035616,9]
[388048948,1758991855762,-480.42546089,0.00035616,9]
[388048949,1758991855771,-480.0,0.00035616,9]
[388048950,1758991855780,-480.0,0.00035616,9]
[388048951,1758991855790,-480.0,0.00035616,9]
[388048952,1758991855800,-480.0,0.00035616,9]
[388048953,1758991855809,-480.0,0.00035616,9]
[388048954,1758991855819,-480.0,0.00035616,9]
[388048955,1758991855828,-480.0,0.00035616,9]
[388048956,1758991855837,-480.0,0.00035616,9]
[388048957,1758991855846,-480.0,0.00035616,9]
[388048958,1758991855855,-480.0,0.00035616,9]
[388048959,1758991855865,-480.0,0.00035616,9]
[388048960,1758991855875,-480.0,0.00035616,9]
[388048961,1758991855884,-480.0,0.00035616,9]
[388048962,1758991855893,-480.0,0.00035616,9]
[388048963,1758991855902,-480.0,0.00035616,9]
[388048964,1758991855911,-480.0,0.00035616,9]
[388048965,1758991855921,-822.47,0.00035616,9]
[388048966,1758991855930,-480.0,0.00035616,9]
[388048967,1758991855939,-480.0,0.00035616,9]
[388048968,1758991855951,-480.0,0.00035616,9]
[388048969,1758991855960,-480.0,0.00035616,9]
[388048970,1758991855969,-602.98614381,0.00035616,9]
[388048971,1758991855979,-2490.15,0.00035616,9]
[388048972,1758991855988,-480.0,0.00035616,9]
[388048973,1758991855997,-480.0,0.00035616,9]
[388048974,1758991856006,-480.0,0.00035616,9]
[388048975,1758991856016,-480.0,0.00035616,9]
[388048976,1758991856025,-480.0,0.00035616,9]
[388048977,1758991856034,-480.0,0.00035616,9]
[388048978,1758991856044,-480.0,0.00035616,9]
[388048979,1758991856053,-480.0,0.00035616,9]
[388048980,1758991856063,-480.0,0.00035616,9]
[388048981,1758991856071,-480.0,0.00035616,9]
[388048982,1758991856081,-480.0,0.00035616,9]
[388048983,1758991856090,-480.0,0.00035616,9]
[388048984,1758991856099,-480.0,0.00035616,9]
[388048985,1758991856109,-480.0,0.00035616,9]
[388048986,1758991856118,-480.0,0.00035616,9]
[388048987,1758991856128,-480.0,0.00035616,9]
[388048988,1758991856138,-480.0,0.00035616,9]
[388048989,1758991856148,-480.0,0.00035616,9]
[388048990,1758991856157,-151.0,0.00035616,7]
[388048991,1758991856166,-480.0,0.00035616,9]
[388048992,1758991856175,-480.0,0.00035616,9]
[388048993,1758991856184,-492.0847084,0.00035616,9]
[388048994,1758991856193,-480.0,0.00035616,9]
[388048995,1758991856203,-480.0,0.00035616,9]
[388048996,1758991856211,-480.0,0.00035616,9]
[388048997,1758991856221,-480.0,0.00035616,9]
[388048998,1758991856230,-480.0,0.00035616,9]
[388048999,1758991856239,-1027.0,0.00035616,9]
[388049000,1758991856248,-480.0,0.00035616,9]
[388049001,1758991856257,-480.0,0.00035616,9]
[388049002,1758991856267,-480.0,0.00035616,9]
[388049003,1758991856276,-480.0,0.00035616,9]
[388049004,1758991856286,-480.0,0.00035616,9]
[388049005,1758991856295,-905.57,0.00035616,9]
[388049006,1758991856304,-668.1,0.00035616,9]
[388049007,1758991856314,-480.0,0.00035616,9]
[388049008,1758991856323,-500.0,0.00035616,9]
[388049009,1758991856332,-500.0,0.00035616,9]
[388049010,1758991856342,-480.0,0.00035616,9]
[388049011,1758991856351,-500.0,0.00035616,9]
[388049012,1758991856360,-500.0,0.00035616,9]
[388049013,1758991856369,-500.0,0.00035616,9]
[388049014,1758991856378,-500.0,0.00035616,9]
[388049015,1758991856387,-500.0,0.00035616,9]
[388049016,1758991856396,-193.29602412,0.00035616,9]
[388049017,1758991856406,-500.0,0.00035616,9]
[388049018,1758991856415,-500.0,0.00035616,9]
[388049019,1758991856425,-480.0,0.00035616,9]
[388049020,1758991856434,-500.0,0.00035616,9]
[388049021,1758991856443,-500.0,0.00035616,9]
[388049022,1758991856452,-500.0,0.00035616,9]
[388049023,1758991856461,-500.0,0.00035616,9]
[388049024,1758991856470,-500.0,0.00035616,9]
[388049025,1758991856479,-500.0,0.00035616,9]
[388049026,1758991856488,-220.84700355,0.00035616,9]
[388049027,1758991856497,-1071.38,0.00035616,9]
[388049028,1758991856506,-480.0,0.00035616,9]
[388049029,1758991856515,-480.0,0.00035616,9]
[388049030,1758991856524,-480.0,0.00035616,9]
[388049031,1758991856533,-480.0,0.00035616,9]
[388049032,1758991856543,-480.0,0.00035616,9]
[388049033,1758991856551,-480.0,0.00035616,9]
[388049034,1758991856561,-480.0,0.00035616,9]
[388049035,1758991856573,-480.0,0.00035616,9]
[388049036,1758991856583,-1698.75,0.00035616,9]
[388049037,1758991856592,-480.0,0.00035616,9]
[388049038,1758991856601,-480.0,0.00035616,9]
[388049039,1758991856611,-480.0,0.00035616,9]
[388049040,1758991856619,-480.0,0.00035616,9]
[388049041,1758991856628,-480.0,0.00035616,9]
[388049042,1758991856637,-480.0,0.00035616,9]
[388049043,1758991856647,-883.82,0.00035616,9]
[388049044,1758991856655,-1000.0,0.00035616,9]
[388049045,1758991856664,-381.1955831,0.00035616,9]
[388049046,1758991856674,-480.0,0.00035616,9]
[388049047,1758991856682,-481.31132786,0.00035616,9]
[388049048,1758991856692,-480.0,0.00035616,9]
[388049049,1758991856701,-480.0,0.00035616,9]
[388049050,1758991856710,-480.0,0.00035616,9]
[388049051,1758991856719,-512.47,0.00035616,9]
[388049052,1758991856728,-480.0,0.00035616,9]
[388049053,1758991856737,-2386.69,0.00035616,9]
[388049054,1758991856746,-381.58222703,0.00035616,9]
[388049055,1758991856756,-1481.2,0.00035616,9]
[388049056,1758991856765,-480.0,0.00035616,9]
[388049057,1758991856774,-480.0,0.00035616,9]
[388049058,1758991856784,-487.87536575,0.00035616,9]
[388049059,1758991856793,-1122.03,0.00035616,9]
[388049060,1758991856802,-480.0,0.00035616,9]
[388049061,1758991856811,-2035.75,0.00035616,9]
[388049062,1758991856820,-480.0,0.00035616,9]
[388049063,1758991856829,-798.94,0.00035616,9]
[388049064,1758991856838,-1685.12,0.00035616,9]
[388049065,1758991856847,-480.0,0.00035616,9]
[388049066,1758991856856,-732.53,0.00035616,9]
[388049067,1758991856997,-480.0,0.00035616,9]
[388049068,1758991857007,-480.0,0.00035616,9]
[388049069,1758991857016,-480.0,0.00035616,9]
[388049070,1758991857026,-480.0,0.00035616,9]
[388049071,1758991857036,-860.0,0.00035616,9]
[388049072,1758991857045,-866.02,0.00035616,9]
[388049073,1758991857055,-480.0,0.00035616,9]
[388049074,1758991857064,-808.41,0.00035616,9]
[388049075,1758991857073,-480.0,0.00035616,2]
[388049076,1758991857082,-500.0,0.00035616,9]
[388049077,1758991857091,-500.0,0.00035616,9]
[388049078,1758991857101,-500.0,0.00035616,9]
[388049079,1758991857111,-500.0,0.00035616,9]
[388049080,1758991857120,-500.0,0.00035616,9]
[388049081,1758991857130,-500.0,0.00035616,9]
[388049082,1758991857139,-500.0,0.00035616,9]
[388049083,1758991857148,-500.0,0.00035616,9]
[388049084,1758991857158,-500.0,0.00035616,9]
[388049085,1758991857167,-500.0,0.00035616,9]
[388049086,1758991857177,-500.0,0.00035616,9]
[388049087,1758991857186,-500.0,0.00035616,9]
[388049088,1758991857195,-487.3,0.00035616,9]
[388049089,1758991857205,-577.44,0.00035616,9]
[388049090,1758991857214,-480.0,0.00035616,9]
[388049091,1758991857223,-480.0,0.00035616,9]
[388049092,1758991857232,-480.0,0.00035616,9]
[388049093,1758991857241,-480.0,0.00035616,9]
[388049094,1758991857250,-509.01,0.00035616,9]
[388049095,1758991857259,-500.0,0.00035616,9]
[388049096,1758991857268,-500.0,0.00035616,9]
[388049097,1758991857277,-500.0,0.00035616,9]
[388049098,1758991857286,-500.0,0.00035616,9]
[388049099,1758991857295,-500.0,0.00035616,9]
[388049100,1758991857305,-500.0,0.00035616,9]
[388049101,1758991857314,-500.0,0.00035616,9]
[388049102,1758991857323,-500.0,0.00035616,9]
[388049103,1758991857332,-396.55404573,0.00035616,9]
[388049104,1758991857341,-480.0,0.00035616,9]
[388049105,1758991857350,-480.0,0.00035616,9]
[388049106,1758991857359,-480.0,0.00035616,9]
[388049107,1758991857369,-703.43,0.00035616,9]
[388049108,1758991857379,-480.0,0.00035616,9]
[388049109,1758991857387,-480.0,0.00035616,9]
[388049110,1758991857397,-659.68,0.00035616,9]
[388049111,1758991857406,-480.0,0.00035616,9]
[388049112,1758991857415,-480.0,0.00035616,9]
[388049113,1758991857425,-480.0,0.00035616,9]
[388049114,1758991857435,-480.0,0.00035616,9]
[388049115,1758991857445,-480.0,0.00035616,9]
[388049116,1758991857454,-480.0,0.00035616,9]
[388049117,1758991857463,-480.0,0.00035616,9]
[388049118,1758991857472,-480.0,0.00035616,9]
[388049119,1758991857481,-480.0,0.00035616,9]
[388049120,1758991857490,-480.0,0.00035616,7]
[388049121,1758991857499,-520.0,0.00035616,3]
[388049122,1758991857508,-480.0,0.00035616,9]
[388049123,1758991857517,-480.0,0.00035616,9]
[388049124,1758991857526,-480.0,0.00035616,9]
[388049125,1758991857536,-480.0,0.00035616,9]
[388049126,1758991857546,-480.0,0.00035616,9]
[388049127,1758991857555,-480.0,0.00035616,9]
[388049128,1758991857568,-480.0,0.00035616,9]
[388049129,1758991857578,-480.0,0.00035616,9]
[388049130,1758991857587,-480.0,0.00035616,9]
[388049131,1758991857597,-480.0,0.00035616,9]
[388049132,1758991857606,-948.42,0.00035616,9]
[388049133,1758991857616,-480.0,0.00035616,9]
[388049134,1758991857625,-480.0,0.00035616,9]
[388049135,1758991857634,-480.0,0.00035616,9]
[388049136,1758991857643,-500.0,0.00035616,9]
[388049137,1758991857654,-500.0,0.00035616,9]
[388049138,1758991857663,-500.0,0.00035616,9]
[388049139,1758991857672,-480.0,0.00035616,9]
[388049140,1758991857681,-500.0,0.00035616,9]
[388049141,1758991857691,-500.0,0.00035616,9]
[388049142,1758991857700,-500.0,0.00035616,9]
[388049143,1758991857709,-500.0,0.00035616,9]
[388049144,1758991857718,-480.0,0.00035616,9]
[388049145,1758991857727,-500.0,0.00035616,9]
[388049146,1758991857737,-293.01128128,0.00035616,9]
[388049147,1758991857746,-480.0,0.00035616,9]
[388049148,1758991857755,-682.22,0.00035616,9]
[388049149,1758991857764,-480.0,0.00035616,9]
[388049150,1758991857773,-480.0,0.00035616,9]
[388049151,1758991857783,-480.0,0.00035616,9]
[388049152,1758991857792,-552.62236105,0.00035616,9]
[388049153,1758991857801,-2539.34,0.00035616,9]
[388049154,1758991857811,-2539.34,0.00035616,9]
[388049155,1758991857820,-2539.34,0.00035616,9]
[388049156,1758991857829,-2539.34,0.00035616,9]
[388049157,1758991857838,-429.11320756,0.00035616,9]
[388049158,1758991857847,-481.23782275,0.00035616,9]
[388049159,1758991857856,-2539.34,0.00035616,9]
[388049160,1758991857865,-480.0,0.00035616,9]
[388049161,1758991857875,-2539.34,0.00035616,9]
[388049162,1758991857883,-2539.34,0.00035616,9]
[388049163,1758991857892,-480.0,0.00035616,9]
[388049164,1758991857902,-2539.34,0.00035616,9]
[388049165,1758991857911,-480.0,0.00035616,9]
[388049166,1758991857920,-2539.34,0.00035616,9]
[388049167,1758991857929,-2539.34,0.00035616,9]
[388049168,1758991857938,-2539.34,0.00035616,9]
[388049169,1758991857947,-2539.34,0.00035616,9]
[388049170,1758991857956,-2539.34,0.00035616,9]
[388049171,1758991857966,-2539.34,0.00035616,9]
[388049172,1758991857975,-2539.34,0.00035616,9]
[388049173,1758991857984,-2539.34,0.00035616,9]
[388049174,1758991857994,-2539.34,0.00035616,9]
[388049175,1758991858003,-2539.34,0.00035616,9]
[388049176,1758991858013,-2539.34,0.00035616,9]
[388049177,1758991858022,-480.0,0.00035616,9]
[388049178,1758991858031,-2539.34,0.00035616,9]
[388049179,1758991858041,-2539.34,0.00035616,9]
[388049180,1758991858051,-481.71927455,0.00035616,9]
[388049181,1758991858060,-480.0,0.00035616,9]
[388049182,1758991858069,-2539.34,0.00035616,9]
[388049183,1758991858078,-2539.34,0.00035616,9]
[388049184,1758991858087,-480.0,0.00035616,9]
[388049185,1758991858096,-2539.54442053,0.00035616,9]
[388049186,1758991858106,-480.0,0.00035616,9]
[388049187,1758991858115,-480.0,0.00035616,9]
[388049188,1758991858124,-480.0,0.00035616,9]
[388049189,1758991858133,-564.83,0.00035616,9]
[388049190,1758991858142,-640.79,0.00035616,9]
[388049191,1758991858151,-641.47,0.00035616,9]
[388049192,1758991858161,-480.0,0.00035616,9]
[388049193,1758991858171,-311.84,0.00035616,9]
[388049194,1758991858180,-532.55816708,0.00035616,9]
[388049195,1758991858189,-480.0,0.00035616,9]
[388049196,1758991858199,-480.0,0.00035616,9]
[388049197,1758991858208,-764.09,0.00035616,9]
[388049198,1758991858217,-480.0,0.00035616,9]
[388049199,1758991858227,-480.0,0.00035616,9]
[388049200,1758991858236,-480.0,0.00035616,9]
[388049201,1758991858245,-480.0,0.00035616,9]
[388049202,1758991858254,-1787.23,0.00035616,9]
[388049203,1758991858263,-1787.23,0.00035616,9]
[388049204,1758991858272,-1787.23,0.00035616,9]
[388049205,1758991858281,-1787.23,0.00035616,9]
[388049206,1758991858291,-1787.23,0.00035616,9]